fUSD/lending_fUSD_20250202
["ID","MTS","AMOUNT","RATE_DAILY","PERIOD"]
[351267466,1738504243694,-500.0,0.00011095,2]
[351267467,1738504243703,-673.47,0.00011095,2]
[351267468,1738504243712,-500.0,0.00011095,2]
[351267469,1738504243721,-500.0,0.00011095,2]
[351267470,1738504243731,-1236.43,0.00011095,2]
[351267471,1738504243739,-500.0,0.00011095,2]
[351267472,1738504243749,-500.0,0.00011095,2]
[351267473,1738504243758,-507.22,0.00011095,2]
[351267474,1738504243767,-500.0,0.00011095,2]
[351267475,1738504243776,-500.0,0.00011095,2]
[351267476,1738504243786,-512.37874973,0.00011095,2]
[351267477,1738504243795,-965.22,0.00011095,2]
[351267478,1738504243804,-500.0,0.00011095,2]
[351267479,1738504243813,-522.56889061,0.00011095,2]
[351267480,1738504243822,-1101.6,0.00011095,2]
[351267481,1738504243831,-778.66,0.00011095,2]
[351267482,1738504243841,-801.88,0.00011095,2]
[351267483,1738504243850,-500.0,0.00011095,2]
[351267484,1738504243859,-500.0,0.00011095,2]
[351267485,1738504243868,-500.0,0.00011095,2]
[351267486,1738504243878,-500.0,0.00011095,2]
[351267487,1738504243887,-500.0,0.00011095,2]
[351267488,1738504243896,-500.0,0.00011095,2]
[351267489,1738504243906,-500.0,0.00011095,2]
[351267490,1738504243915,-627.76,0.00011095,2]
[351267491,1738504243925,-500.0,0.00011095,2]
[351267492,1738504243934,-500.0,0.00011095,2]
[351267493,1738504243943,-500.0,0.00011095,2]
[351267494,1738504243953,-500.0,0.00011095,2]
[351267495,1738504243963,-658.67,0.00011095,2]
[351267496,1738504243972,-600.42,0.00011095,2]
[351267497,1738504243982,-500.0,0.00011095,2]
[351267498,1738504243991,-500.0,0.00011095,2]
[351267499,1738504244000,-500.0,0.00011095,2]
[351267500,1738504244010,-500.0,0.00011095,2]
[351267501,1738504244019,-500.0,0.00011095,2]
[351267502,1738504244028,-500.0,0.00011095,2]
[351267503,1738504244037,-500.0,0.00011095,2]
[351267504,1738504244046,-500.0,0.00011095,2]
[351267505,1738504244055,-500.0,0.00011095,2]
[351267506,1738504244065,-500.0,0.00011095,2]
[351267507,1738504244074,-519.27,0.00011095,2]
[351267508,1738504244084,-500.0,0.00011095,2]
[351267509,1738504244094,-500.0,0.00011095,2]
[351267510,1738504244103,-500.0,0.00011095,2]
[351267511,1738504244112,-500.0,0.00011095,2]
[351267512,1738504244121,-500.0,0.00011095,2]
[351267513,1738504244130,-500.0,0.00011095,2]
[351267514,1738504244139,-500.0,0.00011095,2]
[351267515,1738504244154,-500.0,0.00011095,2]
[351267516,1738504244172,-500.0,0.00011095,2]
[351267517,1738504244187,-500.0,0.00011095,2]
[351267518,1738504244206,-519.22272048,0.00011095,2]
[351267519,1738504244225,-583.74,0.00011095,2]
[351267520,1738504244241,-500.0,0.00011095,2]
[351267521,1738504244257,-500.0,0.00011095,2]
[351267522,1738504244275,-500.0,0.00011095,2]
[351267523,1738504244294,-500.0,0.00011095,2]
[351267524,1738504244313,-500.0,0.00011095,2]
[351267525,1738504244329,-500.0,0.00011095,2]
[351267526,1738504244348,-500.0,0.00011095,2]
[351267527,1738504244364,-500.0,0.00011095,2]
[351267528,1738504244378,-500.0,0.00011095,2]
[351267529,1738504244396,-886.58,0.00011095,2]
[351267530,1738504244411,-500.0,0.00011095,2]
[351267531,1738504244428,-784.63,0.00011095,2]
[351267532,1738504244442,-500.0,0.00011095,2]
[351267533,1738504244458,-500.0,0.00011095,2]
[351267534,1738504244473,-500.0,0.00011095,2]
[351267535,1738504244488,-403.56714969,0.00011095,2]
[351267536,1738504244507,-1054.02,0.00011095,2]
[351267537,1738504244522,-830.47,0.00011095,2]
[351267538,1738504244537,-500.0,0.00011095,2]
[351267539,1738504244551,-2708.51306846,0.00011095,2]
[351267540,1738504244582,-258.64693154,0.00011095,2]
[351267541,1738504244597,-776.62,0.00011095,2]
[351267542,1738504244612,-343.74378433,0.00011095,2]
[351267543,1738504244627,-500.0,0.00011095,2]
[351267544,1738504244641,-2195.36,0.00011095,2]
[351267545,1738504244656,-500.0,0.00011095,2]
[351267546,1738504244671,-500.0,0.00011095,2]
[351267547,1738504244685,-1769.98,0.00011095,2]
[351267548,1738504244700,-2722.25,0.00011095,2]
[351267549,1738504244714,-760.42,0.00011095,2]
[351267550,1738504244728,-500.0,0.00011095,2]
[351267551,1738504244743,-500.0,0.00011095,2]
[351267552,1738504244757,-500.0,0.00011095,2]
[351267553,1738504244772,-500.0,0.00011095,2]
[351267554,1738504244787,-2868.69,0.00011095,2]
[351267555,1738504244802,-500.0,0.00011095,2]
[351267556,1738504244817,-500.0,0.00011095,2]
[351267557,1738504244832,-500.0,0.00011095,2]
[351267558,1738504244848,-578.7,0.00011095,2]
[351267559,1738504244863,-500.0,0.00011095,2]
[351267560,1738504244879,-500.0,0.00011095,2]
[351267561,1738504244894,-500.0,0.00011095,2]
[351267562,1738504244910,-500.0,0.00011095,2]
[351267563,1738504244926,-1031.69,0.00011095,2]
[351267564,1738504244942,-812.08,0.00011095,2]
[351267565,1738504244957,-921.95,0.00011095,2]
[351267566,1738504244973,-355.57314937,0.00011095,2]
[351267567,1738504244988,-500.0,0.00011095,2]
[351267568,1738504245004,-500.0,0.00011095,2]
[351267569,1738504245019,-500.0,0.00011095,2]
[351267570,1738504245034,-500.0,0.00011095,2]
[351267571,1738504245050,-2430.17,0.00011095,2]
[351267572,1738504245065,-2706.0,0.00011095,2]
[351267573,1738504245083,-500.0,0.00011095,2]
[351267574,1738504245100,-500.0,0.00011095,2]
[351267575,1738504245117,-500.0,0.00011095,2]
[351267576,1738504245133,-500.0,0.00011095,2]
[351267577,1738504245150,-500.0,0.00011095,2]
[351267578,1738504245170,-500.0,0.00011095,2]
[351267579,1738504245185,-500.0,0.00011095,2]
[351267580,1738504245201,-500.0,0.00011095,2]
[351267581,1738504245216,-500.0,0.00011095,2]
[351267582,1738504245231,-968.12613476,0.00011095,2]
[351267583,1738504245254,-570.90386524,0.00011095,2]
[351267584,1738504245271,-666.52,0.00011095,2]
[351267585,1738504245288,-667.34,0.00011095,2]
[351267586,1738504245304,-500.0,0.00011095,2]
[351267587,1738504245320,-500.0,0.00011095,2]
[351267588,1738504245335,-954.44,0.00011095,2]
[351267589,1738504245350,-500.0,0.00011095,2]
[351267590,1738504245365,-500.0,0.00011095,2]
[351267591,1738504245381,-2331.72,0.00011095,2]
[351267592,1738504245396,-541.4,0.00011095,2]
[351267593,1738504245411,-500.0,0.00011095,2]
[351267594,1738504245427,-2822.71,0.00011095,2]
[351267595,1738504245443,-500.0,0.00011095,2]
[351267596,1738504245459,-500.0,0.00011095,2]
[351267597,1738504245475,-623.4,0.00011095,2]
[351267598,1738504245491,-211.83828485,0.00011095,2]
[351267599,1738504245506,-1479.26,0.00011095,2]
[351267600,1738504245521,-772.05,0.00011095,2]
[351267601,1738504245537,-500.0,0.00011095,2]
[351267602,1738504245552,-500.0,0.00011095,2]
[351267603,1738504245568,-500.0,0.00011095,2]
[351267604,1738504245583,-500.0,0.00011095,2]
[351267605,1738504245598,-500.0,0.00011095,2]
[351267606,1738504245614,-500.0,0.00011095,2]
[351267607,1738504245630,-662.12,0.00011095,2]
[351267608,1738504245645,-1170.81,0.00011095,2]
[351267609,1738504245663,-500.0,0.00011095,2]
[351267610,1738504245679,-500.0,0.00011095,2]
[351267611,1738504245695,-500.0,0.00011095,2]
[351267612,1738504245711,-1651.29,0.00011095,2]
[351267613,1738504245727,-500.0,0.00011095,2]
[351267614,1738504245745,-500.0,0.00011095,2]
[351267615,1738504245761,-500.0,0.00011095,2]
[351267616,1738504245990,-500.0,0.00011095,2]
[351267617,1738504246005,-500.0,0.00011095,2]
[351267618,1738504246015,-500.0,0.00011095,2]
[351267619,1738504246024,-500.0,0.00011095,2]
[351267620,1738504246034,-500.0,0.00011095,2]
[351267621,1738504246043,-578.91,0.00011095,2]
[351267622,1738504246053,-500.0,0.00011095,2]
[351267623,1738504246063,-500.0,0.00011095,2]
[351267625,1738504246073,-500.0,0.00011095,2]
[351267627,1738504246082,-500.0,0.00011095,2]
[351267629,1738504246091,-1770.67,0.00011095,2]
[351267630,1738504246101,-772.75,0.00011095,2]
[351267632,1738504246111,-500.0,0.00011095,2]
[351267634,1738504246121,-500.0,0.00011095,2]
[351267636,1738504246131,-500.0,0.00011095,2]
[351267637,1738504246140,-630.26,0.00011095,2]
[351267638,1738504246155,-500.0,0.00011095,2]
[351267639,1738504246166,-500.0,0.00011095,2]
[351267640,1738504246177,-500.0,0.00011095,2]
[351267641,1738504246187,-500.0,0.00011095,2]
[351267642,1738504246197,-500.0,0.00011095,2]
[351267643,1738504246207,-1856.66,0.00011095,2]
[351267644,1738504246216,-500.0,0.00011095,2]
[351267645,1738504246226,-184.77,0.00011095,2]
[351267646,1738504246236,-500.0,0.00011095,2]
[351267647,1738504246247,-500.0,0.00011095,2]
[351267648,1738504246257,-500.0,0.00011095,2]
[351267649,1738504246267,-500.0,0.00011095,2]
[351267650,1738504246277,-1120.78,0.00011095,2]
[351267651,1738504246286,-500.0,0.00011095,2]
[351267652,1738504246295,-500.0,0.00011095,2]
[351267653,1738504246305,-500.0,0.00011095,2]
[351267654,1738504246316,-628.73,0.00011095,2]
[351267655,1738504246326,-1864.42,0.00011095,2]
[351267656,1738504246335,-500.0,0.00011095,2]
[351267657,1738504246345,-500.0,0.00011095,2]
[351267658,1738504246355,-500.0,0.00011095,2]
[351267659,1738504246364,-1425.68,0.00011095,2]
[351267660,1738504246374,-500.0,0.00011095,2]
[351267661,1738504246383,-500.0,0.00011095,2]
[351267662,1738504246393,-1199.36,0.00011095,2]
[351267664,1738504246404,-436.91296412,0.00011095,2]
[351267667,1738504246414,-500.0,0.00011095,2]
[351267669,1738504246422,-500.0,0.00011095,2]
[351267672,1738504246432,-500.0,0.00011095,2]
[351267675,1738504246442,-1349.02,0.00011095,2]
[351267678,1738504246451,-500.0,0.00011095,2]
[351267681,1738504246460,-500.0,0.00011095,2]
[351267684,1738504246469,-2027.77,0.00011095,2]
[351267688,1738504246479,-650.93,0.00011095,2]
[351267691,1738504246489,-500.0,0.00011095,2]
[351267694,1738504246498,-3335.804076,0.00011095,2]
[351267696,1738504246507,-500.0,0.00011095,2]
[351267699,1738504246517,-834.11,0.00011095,2]
[351267701,1738504246526,-508.80316184,0.00011095,2]
[351267703,1738504246536,-500.0,0.00011095,2]
[351267705,1738504246545,-717.48,0.00011095,2]
[351267706,1738504246555,-193.24654,0.00011095,2]
[351267707,1738504246564,-500.0,0.00011095,2]
[351267709,1738504246574,-500.0,0.00011095,2]
[351267711,1738504246583,-296.39228652,0.00011095,2]
[351267712,1738504246593,-2865.11,0.00011095,2]
[351267713,1738504246602,-500.0,0.00011095,2]
[351267714,1738504246612,-1105.21,0.00011095,2]
[351267715,1738504246622,-659.22,0.00011095,2]
[351267716,1738504246631,-155.292379,0.00011095,2]
[351267717,1738504246641,-190.36113125,0.00011095,2]
[351267718,1738504246652,-2288.47,0.00011095,2]
[351267719,1738504246661,-928.34,0.00011095,2]
[351267720,1738504246671,-500.0,0.00011095,2]
[351267721,1738504246681,-500.0,0.00011095,2]
[351267722,1738504246690,-500.0,0.00011095,2]
[351267723,1738504246700,-1113.9,0.00011095,2]
[351267724,1738504246710,-523.86781685,0.00011095,2]
[351267725,1738504246720,-1623.29,0.00011095,2]
[351267726,1738504246730,-500.0,0.00011095,2]
[351267727,1738504246740,-500.0,0.00011095,2]
[351267728,1738504246750,-613.85,0.00011095,2]
[351267729,1738504246760,-500.0,0.00011095,2]
[351267730,1738504246770,-500.0,0.00011095,2]
[351267731,1738504246780,-500.0,0.00011095,2]
[351267732,1738504246789,-747.66,0.00011095,2]
[351267733,1738504246799,-500.0,0.00011095,2]
[351267734,1738504246808,-1677.4,0.00011095,2]
[351267735,1738504246818,-500.0,0.00011095,2]
[351267736,1738504246827,-500.0,0.00011095,2]
[351267737,1738504246837,-500.0,0.00011095,2]
[351267738,1738504246846,-595.96,0.00011095,2]
[351267739,1738504246856,-1365.65,0.00011095,2]
[351267740,1738504246866,-500.0,0.00011095,2]
[351267741,1738504246876,-500.0,0.00011095,2]
[351267742,1738504246887,-2940.584215,0.00011095,2]
[351267743,1738504246899,-963.28,0.00011095,2]
[351267744,1738504246909,-777.91,0.00011095,2]
[351267745,1738504246918,-500.0,0.00011095,2]
[351267746,1738504246927,-961.42,0.00011095,2]
[351267747,1738504246937,-510.68,0.00011095,2]
[351267748,1738504246947,-500.0,0.00011095,2]
[351267749,1738504246958,-386.2914097,0.00011095,2]
[351267750,1738504246977,-113.7085903,0.00011095,2]
[351267751,1738504246987,-500.0,0.00011095,2]
[351267752,1738504246997,-500.0,0.00011095,2]
[351267753,1738504247007,-500.0,0.00011095,2]
[351267754,1738504247016,-500.0,0.00011095,2]
[351267755,1738504247025,-1257.0,0.00011095,2]
[351267756,1738504247035,-500.0,0.00011095,2]
[351267757,1738504247045,-500.0,0.00011095,2]
[351267758,1738504247055,-500.0,0.00011095,2]
[351267759,1738504247065,-500.0,0.00011095,2]
[351267760,1738504247074,-513.62,0.00011095,2]
[351267761,1738504247084,-639.1,0.00011095,2]
[351267762,1738504247094,-1002.75,0.00011095,2]
[351267763,1738504247103,-500.0,0.00011095,2]
[351267764,1738504247113,-500.0,0.00011095,2]
[351267765,1738504247122,-500.0,0.00011095,2]
[351267766,1738504247132,-1576.63,0.00011095,2]
[351267767,1738504247141,-1515.97,0.00011095,2]
[351267768,1738504247154,-500.0,0.00011095,2]
[351267769,1738504247164,-701.82,0.00011095,2]
[351267770,1738504247173,-600.61,0.00011095,2]
[351267771,1738504247183,-500.0,0.00011095,2]
[351267772,1738504247192,-500.0,0.00011095,2]
[351267773,1738504247202,-500.0,0.00011095,2]
[351267774,1738504247212,-937.03,0.00011095,2]
[351267775,1738504247222,-500.0,0.00011095,2]
[351267776,1738504247234,-524.23209233,0.00011095,2]
[351267777,1738504247243,-500.0,0.00011095,2]
[351267778,1738504247252,-500.0,0.00011095,2]
[351267779,1738504247262,-500.0,0.00011095,2]
[351267780,1738504247272,-790.34,0.00011095,2]
[351267781,1738504247282,-500.0,0.00011095,2]
[351267782,1738504247292,-500.0,0.00011095,2]
[351267783,1738504247302,-558.08,0.00011095,2]
[351267784,1738504247311,-500.0,0.00011095,2]
[351267785,1738504247321,-691.86,0.00011095,2]
[351267786,1738504247331,-751.26,0.00011095,2]
[351267787,1738504247341,-500.0,0.00011095,2]
[351267788,1738504247350,-500.0,0.00011095,2]
[351267789,1738504247360,-500.0,0.00011095,2]
[351267790,1738504247370,-500.0,0.00011095,2]
[351267791,1738504247380,-500.0,0.00011095,2]
[351267792,1738504247389,-951.95,0.00011095,2]
[351267793,1738504247400,-500.0,0.00011095,2]
[351267794,1738504247409,-957.29,0.00011095,2]
[351267795,1738504247419,-2234.14,0.00011095,2]
[351267796,1738504247429,-500.0,0.00011095,2]
[351267797,1738504247440,-500.0,0.00011095,2]
[351267798,1738504247450,-500.0,0.00011095,2]
[351267799,1738504247460,-976.1,0.00011095,2]
[351267800,1738504247470,-500.0,0.00011095,2]
[351267801,1738504247479,-500.0,0.00011095,2]
[351267802,1738504247489,-500.0,0.00011095,2]
[351267803,1738504247499,-872.1,0.00011095,2]
[351267804,1738504247508,-500.0,0.00011095,2]
[351267805,1738504247519,-191.4765423,0.00011095,2]
[351267806,1738504247534,-308.5234577,0.00011095,2]
[351267807,1738504247544,-500.0,0.00011095,2]
[351267808,1738504247554,-505.08461421,0.00011095,2]
[351267809,1738504247563,-972.87,0.00011095,2]
[351267810,1738504247573,-637.57847788,0.00011095,2]
[351267811,1738504247583,-558.8,0.00011095,2]
[351267812,1738504247594,-500.0,0.00011095,2]
[351267813,1738504247604,-500.0,0.00011095,2]
[351267814,1738504247613,-500.0,0.00011095,2]
[351267815,1738504247623,-500.0,0.00011095,2]
[351267816,1738504247633,-500.0,0.00011095,2]
[351267817,1738504247642,-1646.16,0.00011095,2]
[351267818,1738504247653,-500.0,0.00011095,2]
[351267819,1738504247662,-541.68,0.00011095,2]
[351267820,1738504247671,-500.0,0.00011095,2]
[351267821,1738504247681,-1101.2,0.00011095,2]
[351267822,1738504247690,-1110.27,0.00011095,2]
[351267823,1738504247700,-500.0,0.00011095,2]
[351267824,1738504247710,-463.85107081,0.00011095,2]
[351267825,1738504247720,-500.0,0.00011095,2]
[351267826,1738504247729,-500.0,0.00011095,2]
[351267827,1738504247739,-500.0,0.00011095,2]
[351267828,1738504247748,-548.35499859,0.00011095,2]
[351267829,1738504247758,-692.77,0.00011095,2]
[351267830,1738504247768,-500.0,0.00011095,2]
[351267831,1738504247777,-1369.05,0.00011095,2]
[351267832,1738504247787,-500.0,0.00011095,2]
[351267833,1738504247797,-500.0,0.00011095,2]
[351267834,1738504247807,-500.0,0.00011095,2]
[351267835,1738504247816,-503.38957514,0.00011095,2]
[351267836,1738504247825,-2276.42,0.00011095,2]
[351267837,1738504247835,-500.0,0.00011095,2]
[351267838,1738504247845,-874.2,0.00011095,2]
[351267839,1738504247855,-500.0,0.00011095,2]
[351267840,1738504247864,-500.0,0.00011095,2]
[351267841,1738504247873,-500.0,0.00011095,2]
[351267842,1738504247883,-500.0,0.00011095,2]
[351267843,1738504247893,-500.0,0.00011095,2]
[351267844,1738504247903,-1986.06,0.00011095,2]
[351267845,1738504247913,-500.0,0.00011095,2]
[351267846,1738504247923,-500.0,0.00011095,2]
[351267847,1738504247933,-500.0,0.00011095,2]
[351267848,1738504247942,-500.0,0.00011095,2]
[351267849,1738504247952,-894.65,0.00011095,2]
[351267850,1738504247962,-500.0,0.00011095,2]
[351267851,1738504247972,-500.0,0.00011095,2]
[351267852,1738504247981,-533.89,0.00011095,2]
[351267853,1738504247991,-511.00121822,0.00011095,2]
[351267854,1738504248001,-500.0,0.00011095,2]
[351267855,1738504248012,-562.9,0.00011095,2]
[351267856,1738504248023,-500.0,0.00011095,2]
[351267857,1738504248032,-505.34634315,0.00011095,2]
[351267858,1738504248042,-1003.49,0.00011095,2]
[351267859,1738504248051,-500.0,0.00011095,2]
[351267860,1738504248060,-868.83,0.00011095,2]
[351267861,1738504248070,-500.0,0.00011095,2]
[351267862,1738504248080,-2481.47,0.00011095,2]
[351267863,1738504248090,-500.0,0.00011095,2]
[351267864,1738504248100,-500.0,0.00011095,2]
[351267865,1738504248109,-599.47,0.00011095,2]
[351267866,1738504248119,-500.0,0.00011095,2]
[351267867,1738504248129,-522.22,0.00011095,2]
[351267868,1738504248139,-500.0,0.00011095,2]
[351267869,1738504248149,-500.0,0.00011095,2]
[351267870,1738504248162,-500.0,0.00011095,2]
[351267871,1738504248173,-500.0,0.00011095,2]
[351267872,1738504248183,-965.66,0.00011095,2]
[351267873,1738504248193,-500.0,0.00011095,2]
[351267874,1738504248203,-500.0,0.00011095,2]
[351267875,1738504248213,-1286.64,0.00011095,2]
[351267876,1738504248223,-500.0,0.00011095,2]
[351267877,1738504248234,-500.0,0.00011095,2]
[351267878,1738504248244,-500.0,0.00011095,2]
[351267879,1738504248255,-500.0,0.00011095,2]
[351267880,1738504248264,-529.36,0.00011095,2]
[351267881,1738504248274,-500.0,0.00011095,2]
[351267882,1738504248283,-1049.85,0.00011095,2]
[351267883,1738504248293,-500.0,0.00011095,2]
[351267884,1738504248303,-506.85303306,0.00011095,2]
[351267885,1738504248313,-1006.46,0.00011095,2]
[351267886,1738504248322,-500.0,0.00011095,2]
[351267887,1738504248332,-500.0,0.00011095,2]
[351267888,1738504248341,-500.0,0.00011095,2]
[351267889,1738504248350,-500.0,0.00011095,2]
[351267890,1738504248360,-500.0,0.00011095,2]
[351267891,1738504248369,-614.85,0.00011095,2]
[351267892,1738504248379,-1871.33,0.00011095,2]
[351267893,1738504248389,-500.0,0.00011095,2]
[351267894,1738504248399,-500.0,0.00011095,2]
[351267895,1738504248408,-625.4,0.00011095,2]
[351267896,1738504248417,-380.7745423,0.00011095,2]
[351267897,1738504248427,-659.73,0.00011095,2]
[351267898,1738504248437,-500.0,0.00011095,2]
[351267899,1738504248446,-500.0,0.00011095,2]
[351267900,1738504248456,-1846.27,0.00011095,2]
[351267901,1738504248466,-500.0,0.00011095,2]
[351267902,1738504248475,-500.0,0.00011095,2]
[351267903,1738504248485,-500.0,0.00011095,2]
[351267904,1738504248494,-762.07,0.00011095,2]
[351267905,1738504248504,-500.0,0.00011095,2]
[351267906,1738504248514,-589.38,0.00011095,2]
[351267907,1738504248523,-569.09,0.00011095,2]
[351267908,1738504248534,-1236.97,0.00011095,2]
[351267909,1738504248544,-795.49,0.00011095,2]
[351267910,1738504248553,-500.0,0.00011095,2]
[351267911,1738504248563,-636.71,0.00011095,2]
[351267912,1738504248572,-1333.24,0.00011095,2]
[351267913,1738504248582,-500.0,0.00011095,2]
[351267914,1738504248591,-1073.33,0.00011095,2]
[351267915,1738504248602,-500.0,0.00011095,2]
[351267916,1738504248611,-643.11,0.00011095,2]
[351267917,1738504248621,-500.0,0.00011095,2]
[351267918,1738504248630,-1349.72,0.00011095,2]
[351267919,1738504248640,-500.0,0.00011095,2]
[351267920,1738504248649,-500.0,0.00011095,2]
[351267921,1738504248659,-813.06,0.00011095,2]
[351267922,1738504248668,-500.0,0.00011095,2]
[351267923,1738504248677,-500.0,0.00011095,2]
[351267924,1738504248686,-500.0,0.00011095,2]
[351267925,1738504248696,-666.25,0.00011095,2]
[351267926,1738504248706,-4276.69,0.00011095,2]
[351267927,1738504248715,-500.0,0.00011095,2]
[351267928,1738504248724,-500.0,0.00011095,2]
[351267929,1738504248735,-500.0,0.00011095,2]
[351267930,1738504248744,-687.97,0.00011095,2]
[351267931,1738504248753,-500.0,0.00011095,2]
[351267932,1738504248762,-500.0,0.00011095,2]
[351267933,1738504248771,-500.0,0.00011095,2]
[351267934,1738504248781,-500.0,0.00011095,2]
[351267935,1738504248790,-500.0,0.00011095,2]
[351267936,1738504248970,-500.0,0.00011095,2]
[351267937,1738504248980,-500.0,0.00011095,2]
[351267938,1738504248990,-500.0,0.00011095,2]
[351267939,1738504249000,-1888.12,0.00011095,2]
[351267940,1738504249010,-500.0,0.00011095,2]
[351267941,1738504249019,-500.0,0.00011095,2]
[351267942,1738504249029,-500.0,0.00011095,2]
[351267943,1738504249038,-500.0,0.00011095,2]
[351267944,1738504249048,-500.0,0.00011095,2]
[351267945,1738504249058,-500.0,0.00011095,2]
[351267946,1738504249067,-500.0,0.00011095,2]
[351267947,1738504249077,-500.0,0.00011095,2]
[351267948,1738504249086,-500.0,0.00011095,2]
[351267949,1738504249096,-2650.77,0.00011095,2]
[351267950,1738504249105,-500.0,0.00011095,2]
[351267951,1738504249114,-500.0,0.00011095,2]
[351267952,1738504249124,-889.49,0.00011095,2]
[351267953,1738504249134,-500.0,0.00011095,2]
[351267954,1738504249143,-500.0,0.00011095,2]
[351267955,1738504249156,-2073.43,0.00011095,2]
[351267956,1738504249167,-692.85,0.00011095,2]
[351267957,1738504249176,-500.0,0.00011095,2]
[351267958,1738504249185,-631.15,0.00011095,2]
[351267959,1738504249195,-500.0,0.00011095,2]
[351267960,1738504249205,-500.0,0.00011095,2]
[351267961,1738504249214,-500.0,0.00011095,2]
[351267962,1738504249223,-500.0,0.00011095,2]
[351267963,1738504249233,-1741.6,0.00011095,2]
[351267964,1738504249244,-537.53802049,0.00011095,2]
[351267965,1738504249254,-500.0,0.00011095,2]
[351267966,1738504249263,-1164.33,0.00011095,2]
[351267967,1738504249273,-5378.97,0.00011095,2]
[351267968,1738504249283,-495.96466373,0.00011095,2]
[351267969,1738504249309,-4.03533627,0.00011095,2]
[351267970,1738504249319,-782.16,0.00011095,2]
[351267971,1738504249328,-500.0,0.00011095,2]
[351267972,1738504249338,-296.02469373,0.00011095,2]
[351267973,1738504249366,-286.81926742,0.00011095,2]
[351267974,1738504249375,-1109.68294479,0.00011095,2]
[351267975,1738504249387,-576.47308612,0.00011095,2]
[351267976,1738504249420,-500.0,0.00010958,2]
[351267977,1738504249431,-899.76,0.00010958,2]
[351267978,1738504249441,-253.04396909,0.00011095,2]
[351267979,1738504249451,-500.0,0.00011095,2]
[351267980,1738504249461,-500.0,0.00011095,2]
[351267981,1738504249471,-647.97199727,0.00011095,2]
[351267982,1738504249481,-500.0,0.00011095,2]
[351267983,1738504249490,-500.0,0.00011095,2]
[351267984,1738504249499,-500.0,0.00011095,2]
[351267985,1738504249508,-500.0,0.00011095,2]
[351267986,1738504249518,-3479.36,0.00011095,2]
[351267987,1738504249527,-500.0,0.00011095,2]
[351267988,1738504249537,-1777.30056775,0.00011095,2]
[351267989,1738504249549,-338.33943225,0.00011095,2]
[351267990,1738504249558,-500.0,0.00011095,2]
[351267991,1738504249567,-500.0,0.00011095,2]
[351267992,1738504249577,-500.0,0.00011095,2]
[351267993,1738504249586,-1744.78,0.00011095,2]
[351267994,1738504249596,-1532.88056775,0.00011095,2]
[351267995,1738504249607,-242.47943225,0.00011095,2]
[351267996,1738504249617,-500.0,0.00011095,2]
[351267997,1738504249626,-184.52056475,0.00011095,2]
[351267998,1738504251721,-10069.92,0.00010958,2]
[351267999,1738504251731,-199.93177677,0.00010958,2]
[351268000,1738504251741,-500.0,0.00010958,2]